Workbook

Sheet Cashier Balance Sheet
B2: CASHIER BALANCE SHEET
B4: NAME | D4: SIGNATURE
B5: KIM ABERCROMBIE
B10: DATE | C10: 2013-06-01
B11: DRAWER TOTAL | C11: $9,123.87
B12: COUNTED TOTAL | C12: =SUM($E$18:$E$23,$E$28:$E$33,$E$38:$E$43,$E$48:$E$53,$E$58:$E$64) -> $10,614.08
B13: CASH TOTAL | C13: =SUM($E$18:$E$23,$E$28:$E$33,$E$38:$E$43,$E$48:$E$53,INDEX($E$58:$E$64,MATCH("odd change or bills",$B$58:$B$64,0))) -> $9,120.86
B14: OVER / SHORT | C14: =DrawerTotal-CountedTotal -> ($1,490.21)
B17: ROLLED COINS | C17: COUNT | D17: ROLL VALUE | E17: VALUE
B18: DOLLAR COINS | C18: 0 | D18: $25.00 | E18: ='Cashier Balance Sheet'!$C18*'Cashier Balance Sheet'!$D18 -> $0.00
B19: HALF DOLLARS | C19: 0 | D19: $10.00 | E19: ='Cashier Balance Sheet'!$C19*'Cashier Balance Sheet'!$D19 -> $0.00
B20: QUARTERS | C20: 2 | D20: $10.00 | E20: ='Cashier Balance Sheet'!$C20*'Cashier Balance Sheet'!$D20 -> $20.00
B21: DIMES | C21: 3 | D21: $5.00 | E21: ='Cashier Balance Sheet'!$C21*'Cashier Balance Sheet'!$D21 -> $15.00
B22: NICKELS | C22: 1 | D22: $2.00 | E22: ='Cashier Balance Sheet'!$C22*'Cashier Balance Sheet'!$D22 -> $2.00
B23: PENNIES | C23: 1 | D23: $0.50 | E23: ='Cashier Balance Sheet'!$C23*'Cashier Balance Sheet'!$D23 -> $0.50
B24: TOTAL | C24: =SUM('Cashier Balance Sheet'!$C$18:$C$23) -> 7 | E24: =SUBTOTAL(109,'Cashier Balance Sheet'!$E$18:$E$23) -> $37.50
B27: LOOSE COINS | C27: COUNT | D27: COIN VALUE | E27: VALUE
B28: SILVER DOLLARS | C28: 0 | D28: $1.00 | E28: ='Cashier Balance Sheet'!$C28*'Cashier Balance Sheet'!$D28 -> $0.00
B29: HALF DOLLARS | C29: 0 | D29: $0.50 | E29: ='Cashier Balance Sheet'!$C29*'Cashier Balance Sheet'!$D29 -> $0.00
B30: QUARTERS | C30: 42 | D30: $0.25 | E30: ='Cashier Balance Sheet'!$C30*'Cashier Balance Sheet'!$D30 -> $10.50
B31: DIMES | C31: 33 | D31: $0.10 | E31: ='Cashier Balance Sheet'!$C31*'Cashier Balance Sheet'!$D31 -> $3.30
B32: NICKELS | C32: 22 | D32: $0.05 | E32: ='Cashier Balance Sheet'!$C32*'Cashier Balance Sheet'!$D32 -> $1.10
B33: PENNIES | C33: 11 | D33: $0.01 | E33: ='Cashier Balance Sheet'!$C33*'Cashier Balance Sheet'!$D33 -> $0.11
B34: TOTAL | C34: =SUM('Cashier Balance Sheet'!$C$28:$C$33) -> 108 | E34: =SUBTOTAL(109,'Cashier Balance Sheet'!$E$28:$E$33) -> $15.01
B37: STRAPPED BILLS | C37: COUNT | D37: BUNDLE VALUE | E37: VALUE
B38: HUNDREDS | C38: 1 | D38: $1,000.00 | E38: ='Cashier Balance Sheet'!$C38*'Cashier Balance Sheet'!$D38 -> $1,000.00
B39: FIFTIES | C39: 2 | D39: $1,000.00 | E39: ='Cashier Balance Sheet'!$C39*'Cashier Balance Sheet'!$D39 -> $2,000.00
B40: TWENTIES | C40: 3 | D40: $1,000.00 | E40: ='Cashier Balance Sheet'!$C40*'Cashier Balance Sheet'!$D40 -> $3,000.00
B41: TENS | C41: 4 | D41: $250.00 | E41: ='Cashier Balance Sheet'!$C41*'Cashier Balance Sheet'!$D41 -> $1,000.00
B42: FIVES | C42: 5 | D42: $250.00 | E42: ='Cashier Balance Sheet'!$C42*'Cashier Balance Sheet'!$D42 -> $1,250.00
B43: DOLLARS | C43: 6 | D43: $50.00 | E43: ='Cashier Balance Sheet'!$C43*'Cashier Balance Sheet'!$D43 -> $300.00
B44: TOTAL | C44: =SUM('Cashier Balance Sheet'!$C$38:$C$43) -> 21 | E44: =SUBTOTAL(109,'Cashier Balance Sheet'!$E$38:$E$43) -> $8,550.00
B47: LOOSE BILLS | C47: COUNT | D47: BILL VALUE | E47: VALUE
B48: HUNDREDS | C48: 2 | D48: $100.00 | E48: ='Cashier Balance Sheet'!$C48*'Cashier Balance Sheet'!$D48 -> $200.00
B49: FIFTIES | C49: 3 | D49: $50.00 | E49: ='Cashier Balance Sheet'!$C49*'Cashier Balance Sheet'!$D49 -> $150.00
B50: TWENTIES | C50: 4 | D50: $20.00 | E50: ='Cashier Balance Sheet'!$C50*'Cashier Balance Sheet'!$D50 -> $80.00
B51: TENS | C51: 5 | D51: $10.00 | E51: ='Cashier Balance Sheet'!$C51*'Cashier Balance Sheet'!$D51 -> $50.00
B52: FIVES | C52: 6 | D52: $5.00 | E52: ='Cashier Balance Sheet'!$C52*'Cashier Balance Sheet'!$D52 -> $30.00
B53: DOLLARS | C53: 7 | D53: $1.00 | E53: ='Cashier Balance Sheet'!$C53*'Cashier Balance Sheet'!$D53 -> $7.00
B54: TOTAL | C54: =SUM('Cashier Balance Sheet'!$C$48:$C$53) -> 27 | E54: =SUBTOTAL(109,'Cashier Balance Sheet'!$E$48:$E$53) -> $517.00
B57: MISC | C57: AMOUNT | E57: VALUE
B58: EBT FOOD STAMPS | C58: $250.00 | E58: =C58 -> $250.00
B59: EBT CASH | E59: =C59 -> $0.00
B60: WIC | E60: $0.00
B61: CREDIT CARDS | C61: $457.23 | E61: $457.23
B62: CHECKS | C62: $785.99 | E62: $785.99
B63: COUPONS | E63: $0.00
B64: ODD CHANGE OR BILLS | C64: $1.35 | E64: $1.35
B65: TOTAL | C65: =SUM('Cashier Balance Sheet'!$C$58:$C$64) -> $1,494.57 | E65: =SUBTOTAL(109,'Cashier Balance Sheet'!$E$58:$E$64) -> $1,494.57
